Workbook

Sheet NSU
B1: Emma Tapanen | E1: 22.1.1990 Imatra
B2: SUPERPESIS | E2: Runkosarja | I2: Kärkilyönnit (KL), pesänvälit | P2: Ylempi loppusarja | U2: Alempi loppusarja | Z2: Arvo-ottelut ja mitalit
B3: Vuosi | C3: Sija | D3: Seura | E3: OTT | F3: KUN | G3: LÖI | H3: TOI | I3: KL | J3: 0 > 1 | K3: 1 > 2 | L3: 2 > 3 | M3: 3 > k | N3: KL-% | P3: OTT | Q3: KUN | R3: LÖI | S3: TOI | T3: KL | U3: OTT | V3: KUN | W3: LÖI | X3: TOI | Y3: KL | Z3: IL | AA3: LL | AB3: Halli | AC3: K | AD3: H | AE3: P
B4: 2007 | C4: 4. | D4: Pesä Ysit 2 | F4: suomensarja
B5: 2008 | C5: 1. | D5: Pesä Ysit 2 | F5: ykköspesis
B6: 2009 | C6: 7. | D6: Pesä Ysit 2 | F6: ykköspesis
B7: 2009 | C7: 5. | D7: Pesä Ysit | E7: 10 | F7: 0 | G7: 5 | H7: 0 | I7: 10 | J7: 0 | K7: 2 | L7: 3 | M7: 5 | N7: 41.7 % | O7: =PRODUCT(I7/N7) -> 23.98081535
B8: 2010 | C8: 6. | D8: JoMa | F8: ykköspesis
B9: 2011
B10: 2012 | C10: 2. | D10: Pesä Ysit 2 | F10: suomensarja
B11: 2013
B12: 2014 | C12: 7. | D12: ViPa 2 | F12: suomensarja
B13: 2014 | C13: 10. | D13: ViPa | E13: 24 | F13: 0 | G13: 20 | H13: 0 | I13: 37 | J13: 2 | K13: 5 | L13: 10 | M13: 20 | N13: 35.9 % | O13: =PRODUCT(I13/N13) -> 103.0640669 | U13: 4 | V13: 0 | W13: 5 | X13: 0 | Y13: 9
B14: 2015 | C14: 11. | D14: ViPa | E14: 21 | F14: 0 | G14: 5 | H14: 0 | I14: 41 | J14: 4 | K14: 16 | L14: 16 | M14: 5 | N14: 40.2 % | O14: 102 | U14: 3 | V14: 0 | W14: 7 | X14: 0 | Y14: 11
B15: 2016 | C15: 6. | D15: Roihu 2 | F15: suomensarja
B16: 2016 | C16: 8. | D16: Roihu | F16: ykköspesis
B17: ****
B18: 2023 | C18: 8. | D18: PuMu | F18: suomensarja
B19: Yhteensä | E19: =SUM(E4:E14) -> 55 | F19: =SUM(F4:F14) -> 0 | G19: 30 | H19: 0 | I19: 88 | J19: 6 | K19: 23 | L19: 29 | M19: 30 | N19: =PRODUCT(I19/O19) -> 38.4 % | O19: =SUM(O7:O14) -> 229.0448822 | P19: =SUM(P4:P14) -> 0 | Q19: =SUM(Q4:Q14) -> 0 | R19: =SUM(R4:R14) -> 0 | S19: =SUM(S4:S14) -> 0 | T19: =SUM(T4:T14) -> 0 | U19: =SUM(U4:U14) -> 7 | V19: =SUM(V4:V14) -> 0 | W19: =SUM(W4:W14) -> 12 | X19: =SUM(X4:X14) -> 0 | Y19: =SUM(Y4:Y14) -> 20 | Z19: =SUM(Z4:Z14) -> 0 | AA19: =SUM(AA4:AA14) -> 0 | AB19: =SUM(AB4:AB14) -> 0 | AC19: =SUM(AC4:AC14) -> 0 | AD19: =SUM(AD4:AD14) -> 0 | AE19: =SUM(AE4:AE14) -> 0
B20: Pesispörssi | D20: =SUM(F19:H19)+((I19-F19-G19)/3)+(E19/3)+(Z19*25)+(AA19*25)+(AB19*10)+(AC19*25)+(AD19*20)+(AE19*15) -> 67.7
B22: URA SUPERISSA | E22: OTT | F22: KUN | G22: LÖI | H22: TOI | I22: KL | K22: ka/L | L22: ka/T | M22: ka/KL | N22: K - % | P22: ENSIMMÄISET
B23: Runkosarja | E23: =PRODUCT(E19) -> 55 | F23: =PRODUCT(F19) -> 0 | G23: =PRODUCT(G19) -> 30 | H23: =PRODUCT(H19) -> 0 | I23: =PRODUCT(I19) -> 88 | K23: =PRODUCT((F23+G23)/E23) -> 0.55 | L23: =PRODUCT(H23/E23) -> 0.00 | M23: =PRODUCT(I23/E23) -> 1.60 | N23: =PRODUCT(N19) -> 38.4 % | O23: =PRODUCT(O19) -> 229.0448822 | P23: Ottelu | S23: 13.05. 2009 Pesä Ysit - Kirittäret 0-1 (2-3, 5-5) | AA23: 1. ottelu | AD23: 19 v 3 kk 21 pv
B24: Ylempi loppusarja | O24: 0 | P24: Lyöty juoksu | S24: 21.05. 2009 Pesä Ysit - TyTe 2-0 (6-1, 6-0) | AA24: 4. ottelu | AD24: 19 v 3 kk 29 pv
B25: Alempi loppusarja | E25: =PRODUCT(U19) -> 7 | F25: =PRODUCT(V19) -> 0 | G25: =PRODUCT(W19) -> 12 | H25: =PRODUCT(X19) -> 0 | I25: =PRODUCT(Y19) -> 20 | K25: =PRODUCT((F25+G25)/E25) -> 1.71 | L25: =PRODUCT(H25/E25) -> 0.00 | M25: =PRODUCT(I25/E25) -> 2.86 | N25: =PRODUCT(I25/O25) -> 46.5 % | O25: 43 | P25: Tuotu juoksu
B26: KAIKKI | E26: =SUM(E23:E25) -> 62 | F26: =SUM(F23:F25) -> 0 | G26: =SUM(G23:G25) -> 42 | H26: =SUM(H23:H25) -> 0 | I26: =SUM(I23:I25) -> 108 | K26: =PRODUCT((F26+G26)/E26) -> 0.68 | L26: =PRODUCT(H26/E26) -> 0.00 | M26: =PRODUCT(I26/E26) -> 1.74 | N26: =PRODUCT(I26/O26) -> 39.7 % | O26: =SUM(O23:O25) -> 272.0448822 | P26: Kunnari
B28: Seurat | D28: IPV = Imatran Pallo-Veikot (1955), kasvattajaseura | M28: JoMa = Joensuun Maila (1957) | T28: Roihu = Roihu, Helsinki (1957)
D29: Pesä Ysit = Pesä Ysit, Lappeenranta (1976) | M29: ViPa = Vihdin Pallo (1967)
